fUST/lending_fUST_20250221
["ID","MTS","AMOUNT","RATE_DAILY","PERIOD"]
[353843649,1740089444909,-951.77,0.00013945,2]
[353843650,1740089444919,-500.0,0.00013945,2]
[353843651,1740089444928,-500.0,0.00013945,2]
[353843652,1740089444938,-500.0,0.00013945,2]
[353843653,1740089444947,-500.0,0.00013945,2]
[353843654,1740089444956,-500.0,0.00013945,2]
[353843655,1740089444966,-500.0,0.00013945,2]
[353843656,1740089444976,-500.0,0.00013945,2]
[353843657,1740089444986,-500.0,0.00013945,2]
[353843658,1740089444996,-500.0,0.00013945,2]
[353843659,1740089445006,-769.29,0.00013945,2]
[353843660,1740089445015,-500.0,0.00013945,2]
[353843661,1740089445025,-500.0,0.00013945,2]
[353843662,1740089445035,-500.0,0.00013945,2]
[353843663,1740089445045,-500.0,0.00013945,2]
[353843664,1740089445057,-500.0,0.00013945,2]
[353843665,1740089445067,-500.0,0.00013945,2]
[353843666,1740089445077,-500.0,0.00013945,2]
[353843667,1740089445086,-500.0,0.00013945,2]
[353843668,1740089445097,-500.0,0.00013945,2]
[353843669,1740089445107,-500.0,0.00013945,2]
[353843670,1740089445117,-500.0,0.00013945,2]
[353843671,1740089445127,-500.0,0.00013945,2]
[353843672,1740089445139,-979.61,0.00013945,2]
[353843673,1740089445149,-659.25,0.00013945,2]
[353843674,1740089445159,-500.0,0.00013945,2]
[353843675,1740089445169,-500.0,0.00013945,2]
[353843676,1740089445180,-500.0,0.00013945,2]
[353843677,1740089445190,-1255.21,0.00013945,2]
[353843678,1740089445200,-2152.47,0.00013945,2]
[353843679,1740089445209,-500.0,0.00013945,2]
[353843680,1740089445219,-500.0,0.00013945,2]
[353843681,1740089445229,-500.0,0.00013945,2]
[353843682,1740089445238,-500.0,0.00013945,2]
[353843683,1740089445248,-951.61,0.00013945,2]
[353843684,1740089445258,-500.0,0.00013945,2]
[353843685,1740089445267,-500.0,0.00013945,2]
[353843686,1740089445277,-500.0,0.00013945,2]
[353843687,1740089445287,-501.50324051,0.00013945,2]
[353843688,1740089445297,-674.35,0.00013945,2]
[353843689,1740089445307,-500.0,0.00013945,2]
[353843690,1740089445317,-520.48,0.00013945,2]
[353843691,1740089445327,-500.0,0.00013945,2]
[353843692,1740089445338,-500.0,0.00013945,2]
[353843693,1740089445348,-1063.91,0.00013945,2]
[353843694,1740089445358,-506.13785597,0.00013945,2]
[353843695,1740089445368,-1469.46,0.00013945,2]
[353843696,1740089445378,-500.0,0.00013945,2]
[353843697,1740089445387,-500.0,0.00013945,2]
[353843698,1740089445397,-954.18,0.00013945,2]
[353843699,1740089445406,-500.0,0.00013945,2]
[353843700,1740089445416,-500.0,0.00013945,2]
[353843701,1740089445425,-902.79,0.00013945,2]
[353843702,1740089445434,-999.31,0.00013945,2]
[353843703,1740089445445,-1936.81,0.00013945,2]
[353843704,1740089445455,-500.0,0.00013945,2]
[353843705,1740089445465,-973.95,0.00013945,2]
[353843706,1740089445475,-582.41,0.00013945,2]
[353843707,1740089445484,-500.0,0.00013945,2]
[353843708,1740089445494,-500.0,0.00013945,2]
[353843709,1740089445504,-500.0,0.00013945,2]
[353843710,1740089445514,-500.0,0.00013945,2]
[353843711,1740089445523,-826.12,0.00013945,2]
[353843712,1740089445534,-1569.04,0.00013945,2]
[353843713,1740089445543,-500.0,0.00013945,2]
[353843714,1740089445553,-500.0,0.00013945,2]
[353843715,1740089445563,-500.0,0.00013945,2]
[353843716,1740089445572,-500.0,0.00013945,2]
[353843717,1740089445581,-1183.54,0.00013945,2]
[353843718,1740089445601,-502.46514565,0.00013945,2]
[353843719,1740089445612,-500.0,0.00013945,2]
[353843721,1740089445622,-500.0,0.00013945,2]
[353843723,1740089445632,-421.52766294,0.00013945,2]
[353843724,1740089445642,-500.0,0.00013945,2]
[353843725,1740089445652,-701.5,0.00013945,2]
[353843726,1740089445662,-500.0,0.00013945,2]
[353843727,1740089445672,-500.0,0.00013945,2]
[353843728,1740089445681,-897.88,0.00013945,2]
[353843730,1740089445691,-861.82,0.00013945,2]
[353843731,1740089445701,-512.25,0.00013945,2]
[353843732,1740089445710,-500.0,0.00013945,2]
[353843733,1740089445720,-500.0,0.00013945,2]
[353843734,1740089445730,-699.81,0.00013945,2]
[353843735,1740089445739,-500.0,0.00013945,2]
[353843736,1740089445749,-500.0,0.00013945,2]
[353843737,1740089445759,-810.44,0.00013945,2]
[353843738,1740089445769,-500.0,0.00013945,2]
[353843739,1740089445779,-1145.58,0.00013945,2]
[353843740,1740089445788,-500.0,0.00013945,2]
[353843741,1740089445798,-500.0,0.00013945,2]
[353843742,1740089445808,-16937.45,0.00013945,2]
[353843743,1740089445818,-2353.82,0.00013945,2]
[353843744,1740089445827,-500.0,0.00013945,2]
[353843745,1740089445836,-500.0,0.00013945,2]
[353843746,1740089445846,-500.0,0.00013945,2]
[353843747,1740089445856,-2336.33,0.00013945,2]
[353843748,1740089445865,-1535.26,0.00013945,2]
[353843749,1740089445875,-499.37484569,0.00013945,2]
[353843750,1740089445884,-1723.51,0.00013945,2]
[353843751,1740089445894,-500.0,0.00013945,2]
[353843752,1740089445904,-1779.81,0.00013945,2]
[353843753,1740089445914,-638.85,0.00013945,2]
[353843754,1740089445924,-500.0,0.00013945,2]
[353843755,1740089445934,-500.0,0.00013945,2]
[353843756,1740089445944,-554.72,0.00013945,2]
[353843757,1740089445954,-1489.39,0.00013945,2]
[353843758,1740089445964,-3579.38,0.00013945,2]
[353843759,1740089445973,-2055.75,0.00013945,2]
[353843760,1740089445983,-53142.99,0.00013945,2]
[353843761,1740089445992,-4841.94,0.00013945,2]
[353843762,1740089446003,-500.0,0.00013945,2]
[353843763,1740089446013,-2766.47,0.00013945,2]
[353843764,1740089446022,-651.81,0.00013945,2]
[353843765,1740089446032,-782.52,0.00013945,2]
[353843766,1740089446042,-500.0,0.00013945,2]
[353843767,1740089446051,-500.0,0.00013945,2]
[353843768,1740089446066,-9566.41,0.00013945,2]
[353843772,1740089446185,-500.0,0.00013945,2]
[353843773,1740089446202,-500.0,0.00013945,2]
[353843774,1740089446212,-4875.79,0.00013945,2]
[353843775,1740089446222,-500.0,0.00013945,2]
[353843776,1740089446231,-839.82,0.00013945,2]
[353843777,1740089446241,-619.06561779,0.00013945,2]
[353843778,1740089446251,-1342.97,0.00013945,2]
[353843779,1740089446260,-500.0,0.00013945,2]
[353843780,1740089446270,-299.97500029,0.00013945,2]
[353843781,1740089446279,-694.31,0.00013945,2]
[353843782,1740089446289,-4944.72,0.00013945,2]
[353843783,1740089446298,-905.08,0.00013945,2]
[353843784,1740089446308,-771.62,0.00013945,2]
[353843785,1740089446317,-500.0,0.00013945,2]
[353843786,1740089446327,-2780.68,0.00013945,2]
[353843787,1740089446336,-597.78,0.00013945,2]
[353843788,1740089446345,-1363.5,0.00013945,2]
[353843789,1740089446354,-562.63,0.00013945,2]
[353843790,1740089446364,-2880.53,0.00013945,2]
[353843791,1740089446373,-1738.34,0.00013945,2]
[353843792,1740089446383,-819.11,0.00013945,2]
[353843793,1740089446392,-500.0,0.00013945,2]
[353843794,1740089446404,-769.36,0.00013945,2]
[353843795,1740089446414,-500.0,0.00013945,2]
[353843796,1740089446423,-500.0,0.00013945,2]
[353843797,1740089446433,-500.0,0.00013945,2]
[353843798,1740089446442,-1497.72,0.00013945,2]
[353843799,1740089446451,-815.07,0.00013945,2]
[353843800,1740089446461,-500.0,0.00013945,2]
[353843801,1740089446471,-500.0,0.00013945,2]
[353843802,1740089446480,-970.94,0.00013945,2]
[353843803,1740089446489,-24177.39,0.00013945,2]
[353843804,1740089446498,-500.0,0.00013945,2]
[353843805,1740089446508,-519.32,0.00013945,2]
[353843806,1740089446518,-8501.64,0.00013945,2]
[353843807,1740089446528,-500.0,0.00013945,2]
[353843808,1740089446537,-537.36,0.00013945,2]
[353843809,1740089446547,-2996.07,0.00013945,2]
[353843810,1740089446556,-826.46,0.00013945,2]
[353843811,1740089446566,-693.73,0.00013945,2]
[353843812,1740089446575,-500.0,0.00013945,2]
[353843813,1740089446584,-916.35,0.00013945,2]
[353843814,1740089446594,-500.0,0.00013945,2]
[353843815,1740089446603,-1134.13,0.00013945,2]
[353843816,1740089446613,-502.24315677,0.00013945,2]
[353843817,1740089446623,-2654.74,0.00013945,2]
[353843818,1740089446633,-537.56,0.00013945,2]
[353843819,1740089446643,-865.0,0.00013945,2]
[353843820,1740089446652,-9490.95,0.00013945,2]
[353843821,1740089446662,-500.0,0.00013945,2]
[353843822,1740089446672,-500.0,0.00013945,2]
[353843823,1740089446681,-2637.96,0.00013945,2]
[353843824,1740089446692,-500.0,0.00013945,2]
[353843825,1740089446701,-1106.86,0.00013945,2]
[353843826,1740089446711,-5265.89,0.00013945,2]
[353843827,1740089446720,-541.66,0.00013945,2]
[353843828,1740089446729,-4153.26,0.00013945,2]
[353843829,1740089446739,-500.0,0.00013945,2]
[353843830,1740089446748,-500.0,0.00013988,2]
[353843831,1740089446758,-669.33383376,0.00013991,2]
[353843832,1740089446768,-669.33383376,0.00013998,2]
[353843833,1740089446778,-669.33383376,0.00013998,2]
[353843834,1740089446787,-1002.1901053,0.00013999,2]
[353843835,1740089446797,-587.0,0.00014021,2]
[353843836,1740089446806,-500.0,0.00014027,2]
[353843837,1740089446816,-500.0,0.00014027,2]
[353843838,1740089446825,-500.0,0.00014027,2]
[353843839,1740089446834,-951.77,0.00014027,2]
[353843840,1740089446844,-500.0,0.00014027,2]
[353843841,1740089446853,-500.0,0.00014027,2]
[353843842,1740089446862,-500.0,0.00014027,2]
[353843843,1740089446872,-500.0,0.00014027,2]
[353843844,1740089446881,-500.0,0.00014027,2]
[353843845,1740089446891,-500.0,0.00014027,2]
[353843846,1740089446900,-502.48918186,0.00014027,2]
[353843847,1740089446911,-404.5563,0.00014027,2]
[353843848,1740089446922,-769.29,0.00014027,2]
[353843849,1740089446932,-500.0,0.00014027,2]
[353843850,1740089446942,-500.0,0.00014027,2]
[353843851,1740089446951,-500.0,0.00014027,2]
[353843852,1740089446962,-500.0,0.00014027,2]
[353843853,1740089446971,-563.359996,0.00014027,2]
[353843854,1740089446981,-500.0,0.00014027,2]
[353843855,1740089446990,-500.0,0.00014027,2]
[353843856,1740089446999,-500.0,0.00014027,2]
[353843857,1740089447008,-979.61,0.00014027,2]
[353843858,1740089447018,-659.25,0.00014027,2]
[353843859,1740089447027,-500.0,0.00014027,2]
[353843860,1740089447037,-1255.21,0.00014027,2]
[353843861,1740089447047,-2152.47,0.00014027,2]
[353843862,1740089447058,-500.0,0.00014027,2]
[353843863,1740089447069,-500.0,0.00014027,2]
[353843864,1740089447079,-500.0,0.00014027,2]
[353843865,1740089447088,-500.0,0.00014027,2]
[353843866,1740089447098,-951.61,0.00014027,2]
[353843867,1740089447108,-500.0,0.00014027,2]
[353843868,1740089447117,-500.0,0.00014027,2]
[353843869,1740089447127,-500.0,0.00014027,2]
[353843870,1740089447137,-674.35,0.00014027,2]
[353843871,1740089447146,-500.0,0.00014027,2]
[353843872,1740089447155,-508.09027362,0.00014027,2]
[353843873,1740089447165,-500.0,0.00014027,2]
[353843874,1740089447174,-1063.91,0.00014027,2]
[353843875,1740089447183,-1469.46,0.00014027,2]
[353843876,1740089447193,-500.0,0.00014027,2]
[353843877,1740089447203,-500.0,0.00014027,2]
[353843878,1740089447212,-954.18,0.00014027,2]
[353843879,1740089447221,-297.42085996,0.00014027,2]
[353843880,1740089447231,-500.0,0.00014027,2]
[353843881,1740089447240,-902.79,0.00014027,2]
[353843882,1740089447249,-999.31,0.00014027,2]
[353843883,1740089447258,-1936.81,0.00014027,2]
[353843884,1740089447268,-500.0,0.00014027,2]
[353843885,1740089447277,-973.95,0.00014027,2]
[353843886,1740089447286,-582.41,0.00014027,2]
[353843887,1740089447295,-570.56069097,0.00014027,2]
[353843888,1740089447305,-500.0,0.00014027,2]
[353843889,1740089447315,-500.0,0.00014027,2]
[353843890,1740089447324,-826.12,0.00014027,2]
[353843891,1740089447333,-1569.04,0.00014027,2]
[353843892,1740089447343,-500.0,0.00014027,2]
[353843893,1740089447352,-500.0,0.00014027,2]
[353843894,1740089447361,-500.0,0.00014027,2]
[353843895,1740089447371,-500.0,0.00014027,2]
[353843896,1740089447380,-1183.54,0.00014027,2]
[353843897,1740089447389,-500.0,0.00014027,2]
[353843898,1740089447398,-500.0,0.00014027,2]
[353843899,1740089447407,-500.0,0.00014027,2]
[353843900,1740089447417,-701.5,0.00014027,2]
[353843901,1740089447426,-500.0,0.00014027,2]
[353843902,1740089447436,-500.0,0.00014027,2]
[353843903,1740089447445,-897.88,0.00014027,2]
[353843904,1740089447455,-861.82,0.00014027,2]
[353843905,1740089447465,-512.25,0.00014027,2]
[353843906,1740089447474,-500.0,0.00014027,2]
[353843907,1740089447483,-500.0,0.00014027,2]
[353843908,1740089447493,-699.81,0.00014027,2]
[353843909,1740089447503,-500.0,0.00014027,2]
[353843910,1740089447513,-810.44,0.00014027,2]
[353843911,1740089447522,-500.0,0.00014027,2]
[353843912,1740089447532,-1145.58,0.00014027,2]
[353843913,1740089447542,-500.0,0.00014027,2]
[353843914,1740089447552,-16937.45,0.00014027,2]
[353843915,1740089447562,-2353.82,0.00014027,2]
[353843916,1740089447572,-500.0,0.00014027,2]
[353843917,1740089447581,-500.0,0.00014027,2]
[353843918,1740089447591,-500.0,0.00014027,2]
[353843919,1740089447600,-2336.33,0.00014027,2]
[353843920,1740089447610,-1535.26,0.00014027,2]
[353843921,1740089447619,-1723.51,0.00014027,2]
[353843922,1740089447629,-1779.81,0.00014027,2]
[353843923,1740089447638,-638.85,0.00014027,2]
[353843924,1740089447648,-500.0,0.00014027,2]
[353843925,1740089447657,-500.0,0.00014027,2]
[353843926,1740089447784,-554.72,0.00014027,2]
[353843927,1740089447795,-1489.39,0.00014027,2]
[353843928,1740089447805,-3579.38,0.00014027,2]
[353843929,1740089447815,-2055.75,0.00014027,2]
[353843930,1740089447825,-53142.99,0.00014027,2]
[353843931,1740089447835,-4841.94,0.00014027,2]
[353843932,1740089447845,-2766.47,0.00014027,2]
[353843933,1740089447854,-651.81,0.00014027,2]
[353843934,1740089447864,-782.52,0.00014027,2]
[353843935,1740089447874,-500.0,0.00014027,2]
[353843936,1740089447883,-500.0,0.00014027,2]
[353843937,1740089447893,-9566.41,0.00014027,2]
[353843938,1740089447903,-500.0,0.00014027,2]
[353843939,1740089447914,-500.0,0.00014027,2]
[353843940,1740089447923,-4875.79,0.00014027,2]
[353843941,1740089447933,-500.0,0.00014027,2]
[353843942,1740089447943,-839.82,0.00014027,2]
[353843943,1740089447953,-1342.97,0.00014027,2]
[353843944,1740089447962,-500.0,0.00014027,2]
[353843945,1740089447972,-694.31,0.00014027,2]
[353843946,1740089447982,-4944.72,0.00014027,2]
[353843947,1740089447992,-905.08,0.00014027,2]
[353843948,1740089448002,-771.62,0.00014027,2]
[353843949,1740089448012,-500.0,0.00014027,2]
[353843950,1740089448022,-2780.68,0.00014027,2]
[353843951,1740089448032,-597.78,0.00014027,2]
[353843952,1740089448042,-1363.5,0.00014027,2]
[353843953,1740089448052,-562.63,0.00014027,2]
[353843954,1740089448066,-2880.53,0.00014027,2]
[353843955,1740089448077,-1738.34,0.00014027,2]
[353843956,1740089448088,-819.11,0.00014027,2]
[353843957,1740089448099,-500.0,0.00014027,2]
[353843958,1740089448110,-769.36,0.00014027,2]
[353843959,1740089448121,-500.0,0.00014027,2]
[353843960,1740089448132,-500.0,0.00014027,2]
[353843961,1740089448143,-500.0,0.00014027,2]
[353843962,1740089448154,-1497.72,0.00014027,2]
[353843963,1740089448165,-815.07,0.00014027,2]
[353843964,1740089448175,-500.0,0.00014027,2]
[353843965,1740089448186,-500.0,0.00014027,2]
[353843966,1740089448197,-970.94,0.00014027,2]
[353843967,1740089448208,-24177.39,0.00014027,2]
[353843968,1740089448219,-500.0,0.00014027,2]
[353843969,1740089448230,-519.32,0.00014027,2]
[353843970,1740089448240,-8501.64,0.00014027,2]
[353843971,1740089448252,-500.0,0.00014027,2]
[353843972,1740089448262,-537.36,0.00014027,2]
[353843973,1740089448272,-2996.07,0.00014027,2]
[353843974,1740089448282,-826.46,0.00014027,2]
[353843975,1740089448292,-693.73,0.00014027,2]
[353843976,1740089448302,-500.0,0.00014027,2]
[353843977,1740089448312,-916.35,0.00014027,2]
[353843978,1740089448322,-500.0,0.00014027,2]
[353843979,1740089448332,-1134.13,0.00014027,2]
[353843980,1740089448342,-2654.74,0.00014027,2]
[353843981,1740089448351,-537.56,0.00014027,2]
[353843982,1740089448361,-865.0,0.00014027,2]
[353843983,1740089448372,-9490.95,0.00014027,2]
[353843984,1740089448382,-500.0,0.00014027,2]
[353843985,1740089448392,-500.0,0.00014027,2]
[353843986,1740089448402,-2637.96,0.00014027,2]
[353843987,1740089448412,-1106.86,0.00014027,2]
[353843988,1740089448422,-5265.89,0.00014027,2]
[353843989,1740089448433,-541.66,0.00014027,2]
[353843990,1740089448443,-4153.26,0.00014027,2]
[353843991,1740089448452,-500.0,0.00014027,2]
[353843992,1740089448462,-4521.65564646,0.0001406,2]
[353843993,1740089448994,-371.04980612,0.00013698,2]
[353843994,1740089449004,-168.62069607,0.00013698,2]
[353843995,1740089449019,-331.37930393,0.00013698,2]
[353843996,1740089449029,-590.2,0.0001378,2]
[353843997,1740089449039,-500.0,0.0001378,2]
[353843998,1740089449134,-590.2,0.00013863,2]
[353843999,1740089449144,-590.2,0.00013945,2]
[353844000,1740089449154,-590.2,0.00014027,2]
[353844001,1740089449163,-2917.04188632,0.0001406,2]
[353844002,1740089449176,-3746.70445901,0.00014082,2]
[353844003,1740089449186,-168.26106218,0.00014082,2]
[353844004,1740089449196,-500.0,0.00014109,2]
[353844005,1740089449206,-500.0,0.00014109,2]
[353844006,1740089449216,-500.0,0.00014109,2]
[353844007,1740089449225,-951.77,0.00014109,2]
[353844008,1740089449236,-500.0,0.00014109,2]
[353844009,1740089449245,-500.0,0.00014109,2]
[353844010,1740089449255,-500.0,0.00014109,2]
[353844011,1740089449264,-500.0,0.00014109,2]
[353844012,1740089449274,-500.0,0.00014109,2]
[353844013,1740089449283,-769.29,0.00014109,2]
[353844014,1740089449292,-500.0,0.00014109,2]
[353844015,1740089449302,-500.0,0.00014109,2]
[353844016,1740089449311,-500.0,0.00014109,2]
[353844017,1740089449321,-181.18589493,0.00014109,2]
[353844018,1740089449330,-248.74217373,0.00014109,2]
[353844019,1740089449341,-500.0,0.00014109,2]
[353844020,1740089449350,-500.0,0.00014109,2]
[353844021,1740089449360,-979.61,0.00014109,2]
[353844022,1740089449369,-659.25,0.00014109,2]
[353844023,1740089449378,-500.0,0.00014109,2]
[353844024,1740089449388,-1255.21,0.00014109,2]
[353844025,1740089449398,-2152.47,0.00014109,2]
[353844026,1740089449407,-500.0,0.00014109,2]
[353844027,1740089449417,-500.0,0.00014109,2]
[353844028,1740089449427,-500.0,0.00014109,2]
[353844029,1740089449438,-507.19303599,0.00014109,2]
[353844030,1740089449448,-951.61,0.00014109,2]
[353844031,1740089449458,-500.0,0.00014109,2]
[353844032,1740089449467,-151.54445184,0.00014109,2]
[353844033,1740089449478,-500.0,0.00014109,2]
[353844034,1740089449488,-674.35,0.00014109,2]
[353844035,1740089449499,-500.0,0.00014109,2]
[353844036,1740089449509,-507.12500083,0.00014109,2]
[353844037,1740089449518,-1063.91,0.00014109,2]
[353844038,1740089449529,-1469.46,0.00014109,2]
[353844039,1740089449539,-500.0,0.00014109,2]
[353844040,1740089449550,-500.0,0.00014109,2]
[353844041,1740089449559,-954.18,0.00014109,2]
[353844042,1740089449569,-500.0,0.00014109,2]
[353844043,1740089449579,-902.79,0.00014109,2]
[353844044,1740089449589,-999.31,0.00014109,2]
[353844045,1740089449599,-1936.81,0.00014109,2]
[353844046,1740089449609,-500.0,0.00014109,2]
[353844047,1740089449619,-973.95,0.00014109,2]
[353844048,1740089449628,-582.41,0.00014109,2]
[353844049,1740089449638,-359.20686578,0.00014109,2]
[353844050,1740089449651,-140.79313422,0.00014109,2]
[353844051,1740089449660,-500.0,0.00014109,2]
[353844052,1740089449670,-826.12,0.00014109,2]
[353844053,1740089449679,-1569.04,0.00014109,2]
[353844054,1740089449690,-500.0,0.00014109,2]
[353844055,1740089449699,-500.0,0.00014109,2]
[353844056,1740089449709,-500.0,0.00014109,2]
[353844057,1740089449718,-500.0,0.00014109,2]
[353844058,1740089449728,-1183.54,0.00014109,2]
[353844059,1740089449737,-500.0,0.00014109,2]
[353844060,1740089449747,-500.0,0.00014109,2]
[353844061,1740089449756,-701.5,0.00014109,2]
[353844062,1740089449766,-500.0,0.00014109,2]
[353844063,1740089449775,-500.0,0.00014109,2]
[353844064,1740089449784,-897.88,0.00014109,2]
[353844065,1740089449794,-861.82,0.00014109,2]
[353844066,1740089449803,-512.25,0.00014109,2]
[353844067,1740089449812,-500.0,0.00014109,2]
[353844068,1740089449821,-500.0,0.00014109,2]
[353844069,1740089449831,-699.81,0.00014109,2]
[353844070,1740089449840,-500.0,0.00014109,2]
[353844071,1740089449849,-810.44,0.00014109,2]
[353844072,1740089449859,-500.0,0.00014109,2]
[353844073,1740089449868,-1145.58,0.00014109,2]
[353844074,1740089449877,-500.0,0.00014109,2]
[353844075,1740089449886,-2353.82,0.00014109,2]
[353844076,1740089449896,-500.0,0.00014109,2]
[353844077,1740089449905,-500.0,0.00014109,2]
[353844078,1740089449914,-500.0,0.00014109,2]
[353844079,1740089449923,-2336.33,0.00014109,2]
[353844080,1740089449932,-1535.26,0.00014109,2]
[353844081,1740089449941,-1723.51,0.00014109,2]
[353844082,1740089449950,-1779.81,0.00014109,2]
[353844083,1740089449959,-638.85,0.00014109,2]
[353844084,1740089449968,-500.0,0.00014109,2]
[353844085,1740089449977,-500.0,0.00014109,2]
[353844086,1740089449986,-554.72,0.00014109,2]
[353844087,1740089449995,-283.23047739,0.00014109,2]
[353844088,1740089450008,-1206.15952261,0.00014109,2]
[353844089,1740089450017,-3579.38,0.00014109,2]
[353844090,1740089450026,-2055.75,0.00014109,2]
[353844091,1740089450037,-53142.99,0.00014109,2]
[353844092,1740089450046,-4841.94,0.00014109,2]
[353844093,1740089450056,-2766.47,0.00014109,2]
[353844094,1740089450069,-651.81,0.00014109,2]
[353844095,1740089450078,-782.52,0.00014109,2]
[353844096,1740089450088,-500.0,0.00014109,2]
[353844097,1740089450096,-500.0,0.00014109,2]
[353844098,1740089450107,-9566.41,0.00014109,2]
[353844099,1740089450116,-500.0,0.00014109,2]
[353844100,1740089450126,-500.0,0.00014109,2]
[353844101,1740089450136,-4875.79,0.00014109,2]
[353844102,1740089450147,-500.0,0.00014109,2]
[353844103,1740089450156,-839.82,0.00014109,2]
[353844104,1740089450166,-1342.97,0.00014109,2]
[353844105,1740089450175,-500.0,0.00014109,2]
[353844106,1740089450185,-694.31,0.00014109,2]
[353844107,1740089450195,-4944.72,0.00014109,2]
[353844108,1740089450204,-905.08,0.00014109,2]
[353844109,1740089450214,-771.62,0.00014109,2]
[353844110,1740089450223,-500.0,0.00014109,2]
[353844111,1740089450233,-2780.68,0.00014109,2]
[353844112,1740089450243,-597.78,0.00014109,2]
[353844113,1740089450252,-1363.5,0.00014109,2]
[353844114,1740089450262,-562.63,0.00014109,2]
[353844115,1740089450271,-2880.53,0.00014109,2]
[353844116,1740089450282,-1738.34,0.00014109,2]
[353844117,1740089450291,-819.11,0.00014109,2]
[353844118,1740089450300,-500.0,0.00014109,2]
[353844119,1740089450310,-769.36,0.00014109,2]
[353844120,1740089450322,-500.0,0.00014109,2]
[353844121,1740089450332,-500.0,0.00014109,2]
[353844122,1740089450342,-500.0,0.00014109,2]
[353844123,1740089450352,-1497.72,0.00014109,2]
[353844124,1740089450361,-815.07,0.00014109,2]
[353844125,1740089450370,-500.0,0.00014109,2]
[353844126,1740089450380,-500.0,0.00014109,2]
[353844127,1740089450390,-970.94,0.00014109,2]
[353844128,1740089450399,-24177.39,0.00014109,2]
[353844129,1740089450409,-500.0,0.00014109,2]
[353844130,1740089450492,-519.32,0.00014109,2]
[353844131,1740089450502,-8501.64,0.00014109,2]
[353844132,1740089450511,-533.30308693,0.00014109,2]
[353844133,1740089450520,-537.36,0.00014109,2]
[353844134,1740089450530,-2996.07,0.00014109,2]
[353844135,1740089450540,-826.46,0.00014109,2]
[353844136,1740089450550,-693.73,0.00014109,2]
[353844137,1740089450560,-500.0,0.00014109,2]
[353844138,1740089450569,-916.35,0.00014109,2]
[353844139,1740089450579,-500.0,0.00014109,2]
[353844140,1740089450588,-1134.13,0.00014109,2]
[353844141,1740089450598,-2654.74,0.00014109,2]
[353844142,1740089450608,-537.56,0.00014109,2]
[353844143,1740089450617,-865.0,0.00014109,2]
[353844144,1740089450627,-9490.95,0.00014109,2]
[353844145,1740089450636,-500.0,0.00014109,2]
[353844146,1740089450645,-500.0,0.00014109,2]
[353844147,1740089450655,-2637.96,0.00014109,2]
[353844148,1740089450664,-1106.86,0.00014109,2]
[353844149,1740089450675,-5265.89,0.00014109,2]
[353844150,1740089450684,-541.66,0.00014109,2]
[353844151,1740089450694,-4153.26,0.00014109,2]
[353844152,1740089450704,-500.0,0.00014109,2]
[353844153,1740089450714,-590.2,0.00014109,2]
[353844154,1740089450724,-160.0,0.00014118,4]